Cogmind - Beta 10.2 *** ADVENTURER MODE // 2021.04.23 @ 00:24:10 Player: FluffyCat Result: Destroyed by S-43 Plague with Heavy Machine Gun Performance ------------- Evolutions (9) 4500 Regions Visited (24) 4800 Robots Destroyed (193) 965 Value Destroyed (9170) 9170 Prototype IDs (30) 600 Alien Tech Used (1) 200 Bonus (5448) 5448 TOTAL SCORE: 25683 Bonus ------- High Alert Combat Kills 491 Follower Combat Kills 2126 Network Hubs Disabled 200 Met Data Miner 300 Met Imprinter 300 Met R17 at Cetus 500 Met R17 at Research 2000 Friendly Fire -469 Cogmind --------- Core Integrity 0/1600 Matter 63/300 Energy 83/100 System Corruption 7% Temperature Cool (2) Movement Flying (40) Location -1/Command Parts ------- > --- POWER (2) -------- (None) > --- PROPULSION (10) -- Impulse Thruster Array > --- UTILITY (11) ----- Enhanced Optical Array > --- WEAPON (3) ------- (None) > --- INVENTORY (4) ---- Gamma Bomb Array Peak State ------------ > --- POWER ------------ Light Antimatter Reactor Light Particle Reactor > --- PROPULSION ------- Improved Heavy Treads Centrium Heavy Treads Centrium Heavy Treads Centrium Heavy Treads > --- UTILITY ---------- Advanced Heat Sink Medium Storage Unit Medium Storage Unit Large Storage Unit Enhanced Optical Array Advanced Signal Interpreter Centrium Medium Armor Plating Centrium Medium Armor Plating Hacking Suite Improved Hacking Suite Improved System Shield > --- WEAPON ----------- Heavy Gauss Cannon Heavy Gauss Cannon Lance > --- INVENTORY -------- Antigrav System Antigrav System Gyrokinetic Inverter Improved Antigrav System Improved Antigrav System Improved Gyrokinetic Inverter Advanced Sensor Array Advanced Focal Shield System Backup Module Drone Bay Phasing AFG Advanced Variable Charge Gun KE Penetrator Missile Launcher Smartbomb Launcher [Rating: 159] Favorites ----------- Power Makeshift Power Source Engine Makeshift Power Source Power Core Fission Core Reactor Light Antimatter Reactor Propulsion Improved Carbon-fiber Leg Treads Centrium Heavy Treads Leg Improved Carbon-fiber Leg Hover Unit Improved Antigrav System Flight Unit Field Propulsion Array Utility Advanced Signal Interpreter Device Makeshift Sensor Array Storage Large Storage Unit Processor Advanced Signal Interpreter Hackware System Shield Protection Centrium Medium Armor Plating Weapon KE Penetrator Energy Gun Tesla Rifle Energy Cannon HERF Cannon Ballistic Gun KE Penetrator Ballistic Cannon Heavy Gauss Cannon Launcher Proton Missile Launcher Special Weapon Remote Datajack Slashing Weapon Mining Claw Piercing Weapon CR-A16's Pointy Stick Build | -11 -10 -10 -9 -9 -8 -7 -7 -7 -6 -6 -6 -6 -6 -5 -5 -5 -5 -5 -5 -4 -3 -2 -1 -1 ------- Run | Scr Mat Min Mat Sto Mat Fac Low Zio Pro Fac Low Low Dat Pro Fac Ext Cet Arc Hub Fac Res Res Acc Com Slots Evolved 18 | . . . 2 . 2 2 . . . 2 . . . . 2 . . . . 2 2 2 2 . Power 1 | . . . . . . . . . . . . . . . . . . . . . . 1 . . Propulsion 8 | . . . . . . 1 . . . 1 . . . . 1 . . . . 1 1 1 2 . Utility 9 | . . . 2 . 2 1 . . . 1 . . . . 1 . . . . 1 1 . . . Weapon . | . . . . . . . . . . . . . . . . . . . . . . . . . Parts Attached 251 | 7 2 1 14 11 5 11 . 8 2 13 7 3 1 4 29 19 24 2 22 20 10 20 13 3 Power 18 | 1 . . 1 2 . . . 1 . . . . . 1 . 1 2 . 3 1 . 3 2 . Engine 5 | 1 . . 1 2 . . . 1 . . . . . . . . . . . . . . . . Core 2 | . . . . . . . . . . . . . . 1 . . . . 1 . . . . . Reactor 11 | . . . . . . . . . . . . . . . . 1 2 . 2 1 . 3 2 . Propulsion 55 | 2 . . 2 2 1 4 . 1 . 1 1 . . . 9 4 2 . 3 3 2 12 5 1 Treads 21 | . . . . . . . . . . . . . . . 4 4 2 . 3 2 2 2 2 . Leg 19 | 2 . . 2 2 1 4 . 1 . 1 1 . . . 5 . . . . . . . . . Wheel . | . . . . . . . . . . . . . . . . . . . . . . . . . Hover 7 | . . . . . . . . . . . . . . . . . . . . 1 . 6 . . Flight 8 | . . . . . . . . . . . . . . . . . . . . . . 4 3 1 Utility 68 | 2 1 . 5 . 3 3 . 4 1 2 2 . . 2 5 2 3 . 9 9 6 4 5 . Device 26 | . . . 2 . 1 1 . 2 1 1 . . . 1 . . . . 2 6 2 2 5 . Storage 8 | 2 . . . . 1 . . . . . . . . . 2 1 . . 2 . . . . . Processor 7 | . 1 . 2 . . . . . . . . . . . 2 . . . 1 1 . . . . Hackware 4 | . . . . . . 1 . . . . . . . . . . . . . . 3 . . . Protection 23 | . . . 1 . 1 1 . 2 . 1 2 . . 1 1 1 3 . 4 2 1 2 . . Artifact . | . . . . . . . . . . . . . . . . . . . . . . . . . Weapon 110 | 2 1 1 6 7 1 4 . 2 1 10 4 3 1 1 15 12 17 2 7 7 2 1 1 2 Energy Gun 28 | 1 . 1 3 1 1 . . . 1 2 1 1 . . 5 2 5 1 2 1 . . . . Energy Cannon 6 | . . . . 2 . . . . . . . . . . 2 . . . . 2 . . . . Ballistic Gun 33 | 1 1 . 2 1 . 2 . 1 . 2 2 1 . . 3 5 9 1 2 . . . . . Ballistic Cannon 6 | . . . 1 . . . . . . . . . . . . . . . 1 3 1 . . . Launcher 16 | . . . . 1 . 2 . . . 2 1 . 1 1 1 2 3 . . . . . 1 1 Special Weapon 1 | . . . . . . . . . . 1 . . . . . . . . . . . . . . Impact Weapon . | . . . . . . . . . . . . . . . . . . . . . . . . . Slashing Weapon 2 | . . . . 2 . . . . . . . . . . . . . . . . . . . . Piercing Weapon 18 | . . . . . . . . 1 . 3 . 1 . . 4 3 . . 2 1 1 1 . 1 Special Melee Weapon . | . . . . . . . . . . . . . . . . . . . . . . . . . Unidentified Prototypes 14 | . . . 1 2 1 . . 2 . 2 1 . . . . . 4 . 1 . . . . . Parts Lost 52 | . . . . . . 1 . . . . . . . . 4 3 2 . 11 2 . 9 15 5 Power 6 | . . . . . . . . . . . . . . . . 1 . . 1 . . 1 2 1 Propulsion 16 | . . . . . . . . . . . . . . . 2 1 1 . 2 . . 3 6 1 Utility 22 | . . . . . . 1 . . . . . . . . 1 1 . . 6 1 . 4 6 2 Weapon 8 | . . . . . . . . . . . . . . . 1 . 1 . 2 1 . 1 1 1 Highest Loss Streak 7 | . . . . . . 1 . . . . . . . . 4 2 1 . 5 2 . 3 7 2 Average Slot Usage (%) 89 | . 100 100 96 99 99 98 100 100 100 99 99 100 100 99 92 90 77 77 78 79 76 78 51 13 Engine 3 | . 14 14 11 10 9 7 7 7 7 6 6 6 6 4 . . . . . . . . . . Reactor 1 | . . . . . . . . . . . . . . . . 1 5 5 3 4 4 6 2 . Treads 6 | . . . . . . . . . . . . . . . 6 20 13 11 11 14 13 10 1 . Leg 12 | . 28 28 22 22 18 23 23 23 23 26 25 25 25 25 15 . . . . . . . . . Device 6 | . . . 9 11 8 6 7 6 6 5 6 6 6 6 5 5 5 5 8 5 6 3 5 . Storage 13 | . 25 14 11 11 17 15 15 15 15 13 12 12 12 12 14 13 11 11 14 15 13 12 7 . Processor 8 | . 2 14 12 11 9 7 7 7 7 6 6 6 6 6 7 11 11 11 9 9 9 8 4 3 Hackware 4 | . . . . . . 6 7 7 7 6 6 6 6 6 5 5 5 5 . . 7 12 10 3 Protection 12 | . . . 7 11 17 15 15 15 15 20 18 18 18 17 13 10 11 11 12 15 6 5 . . Energy Gun 3 | . 14 14 11 5 3 6 . . 3 . 3 4 6 6 6 3 4 5 2 2 . . . . Ballistic Gun 6 | . 14 14 10 4 9 7 7 4 7 5 7 9 12 6 4 9 10 10 8 . . . . . Ballistic Cannon 1 | . . . . 6 . . . . . . . . . . . . . . 1 5 7 5 . . Launcher 1 | . . . . . . . 7 7 3 . 2 2 . 6 . . . . . . . . . . Piercing Weapon 2 | . . . . . . . . 2 . 5 2 1 . . 3 2 . . 2 5 . 2 3 2 Naked Turns . | . . . . . . . . . . . . . . . . . . . . . . . . . Heaviest Build 153 | 16 17 13 27 27 51 54 54 67 54 58 62 60 60 64 76 144 153 152 153 108 108 112 59 23 Greatest Support 315 | 20 20 20 20 20 20 54 54 54 54 72 74 74 74 74 139 170 180 150 173 160 270 315 96 27 Greatest Overweight (x) 2 | . . . 1 1 2 1 . 1 . 1 . . . . 1 1 1 1 1 . . 2 1 . Average Overweight (x) . | . . . . 1 1 . . . . . . . . . . . . 1 . . . . . . Largest Inventory Capacity 32 | 8 8 6 6 6 12 12 12 12 12 12 12 12 12 12 32 30 30 30 30 18 18 18 18 4 Average Capacity 15 | 6 7 6 6 6 11 12 12 12 12 12 12 12 12 12 14 21 30 30 20 18 18 18 13 4 Most Carried 30 | 2 6 6 6 6 12 12 12 12 12 12 12 12 12 12 16 29 30 29 30 18 18 18 13 4 Average Carried 13 | . 4 5 5 5 9 11 12 11 12 11 10 11 12 11 13 18 29 28 17 14 17 16 9 3 Final Capacity 30 | 8 6 6 6 6 12 12 12 12 12 12 12 12 12 12 16 30 30 30 18 18 18 18 4 4 Final Carried 29 | 1 6 6 6 6 12 12 12 12 12 12 11 12 12 12 16 29 27 29 12 18 18 13 4 1 Class Distribution -------------------- 40% | Hacker-Mutant 14% | Mutant 12% | Scavenger-Mutant 6% | Commander-Mutant 5% | Hacker-Tank 4% | Hauler-Mutant 4% | Scavenger-Assassin 3% | Hauler-Tank Dominant Class ---------------- Mutant | -10/Materials Mutant | -10/Mines Mutant | -9/Materials Mutant | -9/Storage Mutant | -8/Materials Hacker-Mutant | -7/Factory Hacker-Mutant | -7/Lower Caves Hacker-Mutant | -7/Zion Hacker-Mutant | -6/Proximity Caves Hacker-Mutant | -6/Factory Hacker-Tank | -6/Lower Caves Hacker-Mutant | -6/Lower Caves Hacker-Tank | -6/Data Miner Hacker-Mutant | -5/Proximity Caves Hacker-Mutant | -5/Factory Commander-Mutant | -5/Extension Hauler-Mutant | -5/Cetus Hauler-Tank | -5/Archives Scavenger-Mutant | -5/Hub_04(d) Scavenger-Mutant | -4/Factory Hacker-Tank | -3/Research Scavenger-Mutant | -2/Research Hacker-Mutant | -1/Access Hacker-Mutant | -1/Command Resources | -11 -10 -10 -9 -9 -8 -7 -7 -7 -6 -6 -6 -6 -6 -5 -5 -5 -5 -5 -5 -4 -3 -2 -1 -1 ----------- Run | Scr Mat Min Mat Sto Mat Fac Low Zio Pro Fac Low Low Dat Pro Fac Ext Cet Arc Hub Fac Res Res Acc Com Matter Collected 5248 | 250 49 35 206 251 112 151 15 60 56 152 78 104 . 172 337 608 526 143 606 634 219 434 . 50 Remotely . | . . . . . . . . . . . . . . . . . . . . . . . . . Salvage Created 8945 | 59 49 52 463 470 373 145 88 . 72 190 54 126 . 291 717 1099 1174 415 1617 787 184 415 89 16 Parts 439 | 3 4 3 32 36 22 5 7 . 4 9 2 12 . 8 30 44 58 13 71 44 9 9 11 3 Haulers Intercepted 1 | . . . 1 . . . . . . . . . . . . . . . . . . . . . Recyclers Shooed 4 | . . . . . . . . . . . . . . . 2 . . . 1 1 . . . . Parts Field Recycled . | . . . . . . . . . . . . . . . . . . . . . . . . . Retrieved Matter . | . . . . . . . . . . . . . . . . . . . . . . . . . Parts Self-Destructed 45 | . . . . . . . 3 . 4 . 3 14 . 21 . . . . . . . . . . Prevented 6 | . . . . . . . 2 . . . . . . 4 . . . . . . . . . . Kills | -11 -10 -10 -9 -9 -8 -7 -7 -7 -6 -6 -6 -6 -6 -5 -5 -5 -5 -5 -5 -4 -3 -2 -1 -1 ------- Run | Scr Mat Min Mat Sto Mat Fac Low Zio Pro Fac Low Low Dat Pro Fac Ext Cet Arc Hub Fac Res Res Acc Com Combat Hostiles Destroyed 165 | . 3 3 8 10 8 2 3 . 1 1 1 3 . 7 10 18 26 4 25 16 4 8 4 . Melee 7 | . . . . . . . . . . . . . . . . 2 . . . 5 . . . . Guns 79 | . 3 3 8 . 5 2 . . 1 1 1 3 . 1 5 13 10 4 16 3 . . . . Cannons 37 | . . . . 8 3 . . . . . . . . . 1 . . . 6 8 4 7 . . AOE 40 | . . . . 2 . . 3 . . . . . . 6 4 3 16 . 2 . . . 4 . Classes Destroyed 14 | 1 1 . 4 1 . . . . . 1 . . . 2 3 1 . . . . . . . . Worker 6 | . . . 1 . . . . . . . . . . . . . . . 2 . . . 2 1 Builder 3 | . . . . . . . . . . . . . . . 1 1 . . . . . . 1 . Hauler 1 | . . . 1 . . . . . . . . . . . . . . . . . . . . . Recycler 6 | 1 . . . . . . . . . 1 . . . . 1 . . . 2 1 . . . . Operator 4 | . . . . . . . . . . . . . . . 2 . . . 1 . 1 . . . Watcher 8 | . . . . 2 . . . . . . . . . . 1 1 1 . . 1 . 1 1 . Swarmer 45 | . 3 3 . 2 1 . 3 . . . . 1 . 1 . 2 16 . 3 6 . . 4 . Grunt 54 | . . . 5 1 5 . . . . . 1 . . 4 2 10 3 . 13 4 2 4 . . Brawler 1 | . . . . . . . . . . . . . . 1 . . . . . . . . . . Duelist 1 | . . . . . . . . . . . . . . 1 . . . . . . . . . . Sentry 30 | . . . 3 7 2 2 . . 1 . . 1 . . 2 3 . 4 3 . . 2 . . Hunter 12 | . . . . . . . . . . . . . . . 4 2 2 . 2 . . 2 . . Programmer 16 | . . . . . . . . . . 1 . 1 . . 2 . . . 4 6 2 . . . Behemoth 1 | . . . . . . . . . . . . . . . . 1 . . . . . . . . Cetus Guard 5 | . . . . . . . . . . . . . . . . . 5 . . . . . . . Best Kill Streak 10 | 1 3 3 4 2 3 1 3 . 1 1 1 2 . 5 5 9 10 2 7 8 3 4 7 1 Combat Bots Only 9 | . 3 3 3 2 3 1 3 . 1 1 1 2 . 5 4 9 9 2 5 8 2 4 4 . Max Kills in Single Turn 4 | 1 1 1 2 2 1 1 3 . 1 1 1 1 . 4 2 2 4 1 3 2 1 1 4 1 Gunslinging 1 | . . . . . . . . . . . . . . . . 1 . . . . . . . . Exploded 4 | . . . . 2 . . 3 . . . . . . 4 2 2 4 . 2 . . . 3 . Melee 1 | . . . . . . . . . . . . . . . . 1 . . . 1 . . . . Uniques/NPCs Destroyed . | . . . . . . . . . . . . . . . . . . . . . . . . . Combat | -11 -10 -10 -9 -9 -8 -7 -7 -7 -6 -6 -6 -6 -6 -5 -5 -5 -5 -5 -5 -4 -3 -2 -1 -1 -------- Run | Scr Mat Min Mat Sto Mat Fac Low Zio Pro Fac Low Low Dat Pro Fac Ext Cet Arc Hub Fac Res Res Acc Com Damage Taken 17103 | . 40 76 236 267 128 257 85 . 50 . . 222 . 450 862 1366 2107 209 3419 1098 319 2895 1593 1424 Core 2834 | . 21 . 57 14 24 24 10 . 18 . . 21 . 84 88 117 108 19 315 47 51 202 303 1311 Absorbed by Shields . | . . . . . . . . . . . . . . . . . . . . . . . . . Core Remaining (%) 85 | 100 . 91 . 82 95 . . . 92 . . . . 87 . . . . 35 95 96 86 . . Volleys Fired 401 | 4 5 5 22 33 24 9 3 . 4 3 1 8 . 12 30 43 47 13 66 26 9 30 4 . Largest 3 | 2 2 2 2 2 2 2 1 . 2 2 3 3 . 3 3 3 3 3 3 2 3 3 1 . Hottest 240 | 60 60 60 73 91 91 83 39 . 109 111 139 139 . 150 188 131 240 194 135 141 210 210 46 . Shots Fired 862 | 8 10 10 44 58 48 18 3 . 8 6 3 24 . 20 72 108 106 38 138 43 20 73 4 . Gun 627 | 8 10 10 44 25 40 18 . . 8 6 3 24 . 12 61 105 96 38 110 9 . . . . Cannon 201 | . . . . 30 8 . . . . . . . . . 8 . . . 28 34 20 73 . . Launcher 34 | . . . . 3 . . 3 . . . . . . 8 3 3 10 . . . . . 4 . Special . | . . . . . . . . . . . . . . . . . . . . . . . . . Kinetic 554 | 4 5 5 22 30 24 9 . . 4 3 2 16 . 6 19 86 69 22 120 32 17 59 . . Thermal 96 | . . . . 9 24 9 . . 4 3 1 8 . 6 19 . 1 3 . 9 . . . . Explosive 18 | . . . . 3 . . . . . . . . . 6 3 2 . . . . . . 4 . Electromagnetic 194 | 4 5 5 22 16 . . 3 . . . . . . 2 31 20 36 13 18 2 3 14 . . Robot Hit Streak 32 | 6 7 2 15 18 15 14 1 . 6 2 4 6 . 9 17 31 28 25 26 24 20 32 21 . Robot Miss Streak 5 | 1 1 3 2 3 5 1 2 . 1 2 . 3 . 1 2 1 2 1 3 1 1 2 . . Penetration Max 1 | . . . . . . . . . . . . 1 . . . 1 1 . 1 1 . . . . Secondary Targets 11 | . . 1 2 . . . . . . . . . . . . 3 2 . 3 . . . . . Max Gunslinging Chain 2 | . . 1 1 . . . . . . . . . . . . 2 1 . 1 . . . . . Shots Hit Robots 717 | 6 8 4 37 43 32 16 1 . 6 4 2 11 . 10 53 104 92 34 121 49 17 63 3 1 Core Hits 385 | 2 3 3 18 17 16 4 4 . 3 2 1 5 . 25 31 51 54 15 62 23 8 21 16 1 Critical Hits 61 | . . . . 1 1 1 . . . . . . . . 1 9 7 6 14 9 2 10 . . Critical Kills 24 | . . . . 1 1 1 . . . . . . . . . 2 3 3 6 4 1 2 . . Critical Parts Destroyed 35 | . . . . . . . . . . . . . . . 1 6 4 3 8 5 1 7 . . Melee Attacks 166 | . . . . 2 . . . 16 . 30 1 1 . . 19 16 . . 17 32 . 8 19 5 Impact . | . . . . . . . . . . . . . . . . . . . . . . . . . Slashing 2 | . . . . 2 . . . . . . . . . . . . . . . . . . . . Piercing 164 | . . . . . . . . 16 . 30 1 1 . . 19 16 . . 17 32 . 8 19 5 Sneak Attacks 5 | . . . . . . . . . . 1 . . . . 1 . . . 1 1 . . . 1 Combat Hostiles . | . . . . . . . . . . . . . . . . . . . . . . . . . Follow-up Attacks . | . . . . . . . . . . . . . . . . . . . . . . . . . Damage Inflicted 24631 | 68 98 35 586 808 604 324 172 . 136 198 44 352 . 1546 1984 3144 3123 822 4495 1970 822 2088 1091 121 Guns 11663 | 68 98 35 586 223 442 324 . . 136 88 44 352 . 156 954 2198 1968 822 2887 282 . . . . Cannons 5501 | . . . . 335 162 . . . . . . . . . 312 . . . 722 1113 769 2088 . . Explosions 6099 | . . . . 250 . . 172 . . . . . . 1390 587 724 1155 . 730 . . . 1091 . Melee 1287 | . . . . . . . . . . 110 . . . . 131 222 . . 156 575 . . . 93 Ramming 81 | . . . . . . . . . . . . . . . . . . . . . 53 . . 28 Kinetic 11769 | 27 41 12 236 214 239 179 . . 65 30 20 226 . 72 197 1789 1427 469 3241 1037 681 1567 . . Thermal 2913 | . . . . 184 365 145 52 . 71 58 24 126 . 84 542 524 308 81 67 282 . . . . Explosive 2993 | . . . . 250 . . . . . . . . . 1054 475 154 . . . . . . 1060 . Electromagnetic 5588 | 41 57 23 350 160 . . 120 . . . . . . 336 639 455 1388 272 1031 76 88 521 31 . Impact . | . . . . . . . . . . . . . . . . . . . . . . . . . Slashing . | . . . . . . . . . . . . . . . . . . . . . . . . . Piercing 1287 | . . . . . . . . . . 110 . . . . 131 222 . . 156 575 . . . 93 Highest Corruption 10 | . . . 1 2 . . . . . 2 2 3 3 3 . . . . 10 5 3 2 4 7 Average Corruption 2 | . . . 1 1 . . . . . 2 2 2 3 3 . . . . 5 2 1 1 3 4 Corruption Purged 6 | . . . . . . . . . . . . . . . . . . . . 4 2 . . . Effects 88 | . . . . 3 . . . . . 6 4 12 . 14 . . . . 19 11 3 1 11 4 Message Errors 27 | . . . . . . . . . . 5 2 5 . 3 . . . . 4 5 . . 3 . Matter Fused 12 | . . . . . . . . . . . . . . 2 . . . . 4 1 . . 4 1 Heat Flow Errors 12 | . . . . . . . . . . . 1 2 . 2 . . . . 1 3 . . 2 1 Energy Discharges 11 | . . . . 1 . . . . . 1 . 2 . 2 . . . . . 1 2 . 2 . Parts Rejected 1 | . . . . . . . . . . . . . . . . . . . . . . . . 1 Data Loss (minor) 12 | . . . . 2 . . . . . . 1 3 . 4 . . . . . . . 1 . 1 Data Loss (major) 1 | . . . . . . . . . . . . . . . . . . . 1 . . . . . Targeting Errors 11 | . . . . . . . . . . . . . . 1 . . . . 8 1 1 . . . Weapon Failures 1 | . . . . . . . . . . . . . . . . . . . 1 . . . . . Overload Shots 1 | . . . . . . . . . . . . . . . . . 1 . . . . . . . Overflow Damage 580 | . . . . 69 . . . . . . . . . 92 89 108 21 . 19 60 17 28 77 . Projectiles 55 | . . . . . . . . . . . . . . . 2 . . . . 8 17 28 . . Explosions 380 | . . . . 69 . . . . . . . . . 92 . 102 21 . 19 . . . 77 . Melee 145 | . . . . . . . . . . . . . . . 87 6 . . . 52 . . . . Knockbacks 35 | . . . . . . . . . . . . . . . . . . . 1 13 4 17 . . Impact . | . . . . . . . . . . . . . . . . . . . . . . . . . Kinetic 30 | . . . . . . . . . . . . . . . . . . . 1 11 3 15 . . Secondary 5 | . . . . . . . . . . . . . . . . . . . . 2 1 2 . . Self-Inflicted Damage 289 | . . . . . . . 2 . . . . . . 71 . 36 . . 113 . 53 . . 14 Shots 6 | . . . . . . . 1 . . . . . . 2 . 1 . . 2 . . . . . Rammed 4 | . . . . . . . . . . . . . . . . . . . . . . . . 4 Targets Rammed 4 | . . . . . . . . . . . . . . . . . . . . . . . . 4 Kicked . | . . . . . . . . . . . . . . . . . . . . . . . . . Crushed . | . . . . . . . . . . . . . . . . . . . . . . . . . Highest Temperature 387 | 40 . . 3 20 200 243 . . 177 180 122 310 . 243 319 172 372 355 356 319 151 387 224 225 Average Temperature 112 | 18 . . 2 10 61 107 . . 76 91 53 121 . 95 121 37 194 127 116 113 75 155 90 121 Received Heat Transfer 2616 | . . . 99 84 90 132 . . 6 . . 30 . 135 63 318 255 27 900 39 42 288 108 . Effects 17 | . . . . . . . . . . . . . . . 2 . 4 1 4 1 . 5 . . Shutdowns 4 | . . . . . . . . . . . . . . . . . 1 1 1 . . 1 . . Energy Bleed 5 | . . . . . . . . . . . . . . . 2 . 1 . . 1 . 1 . . Interference 6 | . . . . . . . . . . . . . . . . . 2 . 3 . . 1 . . Damage (minor) 2 | . . . . . . . . . . . . . . . . . . . . . . 2 . . Siege Activations . | . . . . . . . . . . . . . . . . . . . . . . . . . Robots Corrupted 3 | . . . . . . . . . . . . . . . . . . . 1 1 . 1 . . Combat Hostiles 2 | . . . . . . . . . . . . . . . . . . . 1 . . 1 . . Parts Fried 24 | 1 . . . 1 . . . . . . . . . . 6 . 5 1 7 2 1 . . . Impact Corruptions . | . . . . . . . . . . . . . . . . . . . . . . . . . Robots Melted . | . . . . . . . . . . . . . . . . . . . . . . . . . Combat Hostiles . | . . . . . . . . . . . . . . . . . . . . . . . . . Parts Melted 7 | . . . . 1 1 2 . . . 1 . 1 . . . . . . . 1 . . . . Heat Transferred 3416 | . . . . 333 703 296 50 . 111 74 37 185 . 148 485 350 150 111 50 333 . . . . Parts Sabotaged . | . . . . . . . . . . . . . . . . . . . . . . . . . Parts Stolen . | . . . . . . . . . . . . . . . . . . . . . . . . . Parts Stripped . | . . . . . . . . . . . . . . . . . . . . . . . . . Power Chain Reactions 11 | . . . . . . . 1 . . . . . . . 2 1 6 . 1 . . . . . Missiles Intercepted . | . . . . . . . . . . . . . . . . . . . . . . . . . Alert | -11 -10 -10 -9 -9 -8 -7 -7 -7 -6 -6 -6 -6 -6 -5 -5 -5 -5 -5 -5 -4 -3 -2 -1 -1 ------- Run | Scr Mat Min Mat Sto Mat Fac Low Zio Pro Fac Low Low Dat Pro Fac Ext Cet Arc Hub Fac Res Res Acc Com Peak Influence 1126 | 5 124 125 307 343 331 148 . . . 62 . . . . 188 472 660 292 831 510 324 454 1126 842 Initial 624 | . 2 40 40 16 117 78 . . . 7 . . . . 117 65 229 155 85 351 147 88 232 624 Average 244 | 2 53 122 102 200 193 104 . . . 18 . . . . 106 246 446 259 272 392 195 263 606 720 Maximum Alert Level 4 | . . . 1 1 1 . . . . . . . . . . 2 2 1 3 2 1 2 4 3 Low Security (%) 47 | 100 100 100 83 57 61 100 . . . 100 . . . . 100 24 . 16 43 . 59 24 . . Level 1 33 | . . . 16 42 38 . . . . . . . . . . 65 32 83 23 44 40 71 39 . Level 2 16 | . . . . . . . . . . . . . . . . 9 67 . 32 55 . 4 17 45 Level 3 2 | . . . . . . . . . . . . . . . . . . . 1 . . . 40 54 Level 4 . | . . . . . . . . . . . . . . . . . . . . . . . 2 . Level 5 . | . . . . . . . . . . . . . . . . . . . . . . . . . High Security . | . . . . . . . . . . . . . . . . . . . . . . . . . Max Security . | . . . . . . . . . . . . . . . . . . . . . . . . . Squads Dispatched 45 | . . . 2 2 1 . . . . 2 . . . 1 4 3 . . 8 6 6 4 2 4 Investigation 10 | . . . 1 1 . . . . . 1 . . . . 1 . . . 1 . 2 . 1 2 Extermination 8 | . . . . . . . . . . 1 . . . . 1 . . . 2 3 . 1 . . Reinforcement 20 | . . . 1 1 1 . . . . . . . . . 2 3 . . 2 . 4 3 1 2 Assault 3 | . . . . . . . . . . . . . . 1 . . . . 2 . . . . . Garrison 4 | . . . . . . . . . . . . . . . . . . . 1 3 . . . . Intercept . | . . . . . . . . . . . . . . . . . . . . . . . . . Construction Impeded 3 | . . . . . . . . . . . . . . . 1 1 . . . . . . 1 . Haulers Reinforced 3 | . . . . . . . . . . . . . . . . . . . . . 3 . . . Stealth | -11 -10 -10 -9 -9 -8 -7 -7 -7 -6 -6 -6 -6 -6 -5 -5 -5 -5 -5 -5 -4 -3 -2 -1 -1 --------- Run | Scr Mat Min Mat Sto Mat Fac Low Zio Pro Fac Low Low Dat Pro Fac Ext Cet Arc Hub Fac Res Res Acc Com Distress Signals 28 | . . . 2 1 . . . . . . . . . . 1 5 2 . 1 . 8 3 4 1 Communications Jammed 51 | . . . . . . . . . . . . . . . . . . . 51 . . . . . Distress Signals 51 | . . . . . . . . . . . . . . . . . . . 51 . . . . . Times Spotted 412 | . 4 3 12 24 20 2 3 . 2 2 1 5 . 18 17 46 32 6 54 23 9 45 57 27 Peak Tracking Total 23 | . 3 3 3 4 7 1 3 . 1 1 1 3 . 10 4 7 10 1 21 5 4 20 11 23 Tactical Retreats 39 | . 1 . 2 2 . . . . 1 . . 1 . 1 . 2 . . 4 1 . 3 16 5 Traps | -11 -10 -10 -9 -9 -8 -7 -7 -7 -6 -6 -6 -6 -6 -5 -5 -5 -5 -5 -5 -4 -3 -2 -1 -1 ------- Run | Scr Mat Min Mat Sto Mat Fac Low Zio Pro Fac Low Low Dat Pro Fac Ext Cet Arc Hub Fac Res Res Acc Com Traps Triggered 6 | . . . 2 2 . . . . . . . . . . . . . . 1 1 . . . . Indirectly . | . . . . . . . . . . . . . . . . . . . . . . . . . Trap Hack Attempts . | . . . . . . . . . . . . . . . . . . . . . . . . . Triggered . | . . . . . . . . . . . . . . . . . . . . . . . . . Disarmed 4 | . . . . 4 . . . . . . . . . . . . . . . . . . . . Reprogrammed . | . . . . . . . . . . . . . . . . . . . . . . . . . Reused . | . . . . . . . . . . . . . . . . . . . . . . . . . Traps Extracted . | . . . . . . . . . . . . . . . . . . . . . . . . . Installed 1 | . . 1 . . . . . . . . . . . . . . . . . . . . . . Triggered . | . . . . . . . . . . . . . . . . . . . . . . . . . Machines | -11 -10 -10 -9 -9 -8 -7 -7 -7 -6 -6 -6 -6 -6 -5 -5 -5 -5 -5 -5 -4 -3 -2 -1 -1 ---------- Run | Scr Mat Min Mat Sto Mat Fac Low Zio Pro Fac Low Low Dat Pro Fac Ext Cet Arc Hub Fac Res Res Acc Com Machines Disabled 31 | . . . . 1 1 . . . . . . . . 1 3 3 3 . 16 1 . . 2 . Max in Single Turn 7 | . . . . 1 1 . . . . . . . . 1 1 1 2 . 7 1 . . 1 . Garrison Access 1 | . . . . . . . . . . . . . . . . . . . . . . . 1 . Network Hub 1 | . . . . . . . . . . . . . . . . . . . 1 . . . . . Energy Cycler 1 | . . . . . . . . . . . . . . . . 1 . . . . . . . . Machines Sabotaged . | . . . . . . . . . . . . . . . . . . . . . . . . . Garrisons Compromised . | . . . . . . . . . . . . . . . . . . . . . . . . . Overloaded Fab Kills . | . . . . . . . . . . . . . . . . . . . . . . . . . Fab Network Shutdowns . | . . . . . . . . . . . . . . . . . . . . . . . . . Hacking | -11 -10 -10 -9 -9 -8 -7 -7 -7 -6 -6 -6 -6 -6 -5 -5 -5 -5 -5 -5 -4 -3 -2 -1 -1 --------- Run | Scr Mat Min Mat Sto Mat Fac Low Zio Pro Fac Low Low Dat Pro Fac Ext Cet Arc Hub Fac Res Res Acc Com Machines Accessed 74 | . 3 1 5 8 4 1 . . . 6 1 1 4 . 3 9 2 1 5 6 3 . 7 4 Terminals 60 | . 3 1 5 7 4 1 . . . 4 . . . . 2 9 2 . 5 4 3 . 6 4 Fabricators 1 | . . . . . . . . . . 1 . . . . . . . . . . . . . . Repair Stations 2 | . . . . . . . . . . . . . . . 1 . . . . 1 . . . . Recycling Units 1 | . . . . 1 . . . . . . . . . . . . . . . . . . . . Scanalyzers 2 | . . . . . . . . . . 1 . . . . . . . . . 1 . . . . Garrison Access 1 | . . . . . . . . . . . . . . . . . . . . . . . 1 . Total Hacks 318 | . 7 2 19 29 18 6 . . . 42 8 1 31 . 14 25 8 7 15 21 20 . 35 10 Successful 206 | . 5 2 16 22 8 3 . . . 31 8 1 31 . 7 15 5 7 8 8 10 . 17 2 Failed 112 | . 2 . 3 7 10 3 . . . 11 . . . . 7 10 3 . 7 13 10 . 18 8 Catastrophic 10 | . . . . 1 1 . . . . 1 . . . . 1 . . . . 1 2 . 2 1 Database Lockouts . | . . . . . . . . . . . . . . . . . . . . . . . . . Manual 159 | . 2 2 16 22 15 6 . . . 19 . . 1 . 11 13 . . 10 11 11 . 18 2 Terminals 239 | . 7 2 19 26 18 6 . . . 21 . . . . 12 25 8 . 15 17 20 . 33 10 Fabricators 3 | . . . . . . . . . . 3 . . . . . . . . . . . . . . Repair Stations 4 | . . . . . . . . . . . . . . . 2 . . . . 2 . . . . Recycling Units 3 | . . . . 3 . . . . . . . . . . . . . . . . . . . . Scanalyzers 20 | . . . . . . . . . . 18 . . . . . . . . . 2 . . . . Garrison Access 2 | . . . . . . . . . . . . . . . . . . . . . . . 2 . Terminal Hacks 127 | . 4 . 10 13 5 1 . . . 4 8 1 31 . 3 9 5 7 4 4 8 . 8 2 Record 36 | . 2 . . . . . . . . . 8 . 11 . . 1 5 7 . . 2 . . . Part Schematic 12 | . . . . . . . . . . . . . 11 . 1 . . . . . . . . . Robot Schematic 6 | . . . . . . . . . . . . . 6 . . . . . . . . . . . Robot Analysis 1 | . . . 1 . . . . . . . . . . . . . . . . . . . . . Prototype ID Bank 4 | . . . 1 . . . . . . . . . 3 . . . . . . . . . . . Open Door 7 | . . . . 1 . . . . . . . 1 . . . 5 . . . . . . . . Level Access Points 1 | . . . . 1 . . . . . . . . . . . . . . . . . . . . Branch Access Points 4 | . . . . 1 1 . . . . 1 . . . . 1 . . . . . . . . . Emergency Access Points 1 | . . . . 1 . . . . . . . . . . . . . . . . . . . . Machine Index 1 | . . . . . . . . . . . . . . . . . . . . . 1 . . . Terminal Index 10 | . . . 1 1 1 1 . . . . . . . . . 1 . . 1 1 1 . 1 1 Alert Level 11 | . . . 1 2 1 . . . . 1 . . . . . 2 . . 1 1 1 . 1 . Unreport Threat 3 | . . . 1 . 1 . . . . . . . . . . . . . . . . . 1 . Locate Traps 13 | . 1 . 2 2 1 . . . . 2 . . . . 1 . . . . 1 . . 3 . Disarm Traps 1 | . . . . 1 . . . . . . . . . . . . . . . . . . . . Recall Reinforcements 2 | . . . . 1 . . . . . . . . . . . . . . . . 1 . . . Zone Layout 13 | . 1 . 3 2 . . . . . . . . . . . . . . 2 1 2 . 2 . Disengage Seal 1 | . . . . . . . . . . . . . . . . . . . . . . . . 1 Fabricator Hacks 3 | . . . . . . . . . . 3 . . . . . . . . . . . . . . Network Status 1 | . . . . . . . . . . 1 . . . . . . . . . . . . . . Load Schematic 1 | . . . . . . . . . . 1 . . . . . . . . . . . . . . Build 1 | . . . . . . . . . . 1 . . . . . . . . . . . . . . Repair Station Hacks 2 | . . . . . . . . . . . . . . . 2 . . . . . . . . . Scan Component 1 | . . . . . . . . . . . . . . . 1 . . . . . . . . . Repair 1 | . . . . . . . . . . . . . . . 1 . . . . . . . . . Recycling Unit Hacks 1 | . . . . 1 . . . . . . . . . . . . . . . . . . . . Report Inventory 1 | . . . . 1 . . . . . . . . . . . . . . . . . . . . Scanalyzer 19 | . . . . . . . . . . 18 . . . . . . . . . 1 . . . . Insert Component 8 | . . . . . . . . . . 7 . . . . . . . . . 1 . . . . Analyze 11 | . . . . . . . . . . 11 . . . . . . . . . . . . . . Garrison Access Hacks 1 | . . . . . . . . . . . . . . . . . . . . . . . 1 . Seal Access 1 | . . . . . . . . . . . . . . . . . . . . . . . 1 . Unauthorized Hacks 53 | . 1 2 6 8 3 2 . . . 6 . . . . 2 6 . . 4 3 2 . 8 . Terminals 52 | . 1 2 6 7 3 2 . . . 6 . . . . 2 6 . . 4 3 2 . 8 . Track 2 | . . 1 1 . . . . . . . . . . . . . . . . . . . . . Assimilate 2 | . . . . . . . . . . 1 . . . . . 1 . . . . . . . . Botnet 34 | . . 1 4 6 2 1 . . . 4 . . . . 2 4 . . 3 2 2 . 3 . Detonate 3 | . . . . . . . . . . . . . . . . . . . . . . . 3 . Disrupt 2 | . . . . . . . . . . . . . . . . . . . . . . . 2 . Operators 9 | . 1 . 1 1 1 1 . . . 1 . . . . . 1 . . 1 1 . . . . Fabricators . | . . . . . . . . . . . . . . . . . . . . . . . . . Repair Stations . | . . . . . . . . . . . . . . . . . . . . . . . . . Recycling Units 1 | . . . . 1 . . . . . . . . . . . . . . . . . . . . Monitor 1 | . . . . 1 . . . . . . . . . . . . . . . . . . . . Scanalyzers . | . . . . . . . . . . . . . . . . . . . . . . . . . Garrison Access . | . . . . . . . . . . . . . . . . . . . . . . . . . Data Cores Recovered 2 | . . . . . . . . . . . . . . . 1 . . . . . 1 . . . Used . | . . . . . . . . . . . . . . . . . . . . . . . . . Hacking Detections 53 | . 1 1 5 5 3 1 . . . 5 . . . . 2 6 1 . 4 6 3 . 7 3 Full Trace Events 8 | . . . . 2 . . . . . 1 . . . . 1 . . . 1 . . . 1 2 Feedback Events 2 | . . . . . . . . . . . . . . . . . . . . . . . 1 1 Hackware Fried 2 | . . . . . . . . . . . . . . . . . . . . . . . 1 1 Feedback Blocked . | . . . . . . . . . . . . . . . . . . . . . . . . . Robot Schematics Acquired 6 | . . . . . . . . . . . . . 6 . . . . . . . . . . . Robots Built . | . . . . . . . . . . . . . . . . . . . . . . . . . Matter . | . . . . . . . . . . . . . . . . . . . . . . . . . Time . | . . . . . . . . . . . . . . . . . . . . . . . . . Total Robot Build Rating . | . . . . . . . . . . . . . . . . . . . . . . . . . Part Schematics Acquired 19 | . . . . . . . . . . 7 . . 11 . 1 . . . . . . . . . Parts Built 2 | . . . . . . . . . . 2 . . . . . . . . . . . . . . Matter 168 | . . . . . . . . . . 168 . . . . . . . . . . . . . . Time 84 | . . . . . . . . . . 84 . . . . . . . . . . . . . . Total Part Build Rating 8 | . . . . . . . . . . 8 . . . . . . . . . . . . . . Parts Repaired 1 | . . . . . . . . . . . . . . . 1 . . . . . . . . . Time 44 | . . . . . . . . . . . . . . . 44 . . . . . . . . . Parts Recycled . | . . . . . . . . . . . . . . . . . . . . . . . . . Recycled Matter . | . . . . . . . . . . . . . . . . . . . . . . . . . Retrieved Matter . | . . . . . . . . . . . . . . . . . . . . . . . . . Retrieved Components . | . . . . . . . . . . . . . . . . . . . . . . . . . Parts Scanalyzed 8 | . . . . . . . . . . 7 . . . . . . . . . 1 . . . . Part Schematics Acquired 7 | . . . . . . . . . . 7 . . . . . . . . . . . . . . Parts Damaged 1 | . . . . . . . . . . 1 . . . . . . . . . . . . . . Bothacking | -11 -10 -10 -9 -9 -8 -7 -7 -7 -6 -6 -6 -6 -6 -5 -5 -5 -5 -5 -5 -4 -3 -2 -1 -1 ------------ Run | Scr Mat Min Mat Sto Mat Fac Low Zio Pro Fac Low Low Dat Pro Fac Ext Cet Arc Hub Fac Res Res Acc Com Used RIF Installer . | . . . . . . . . . . . . . . . . . . . . . . . . . Robots Hacked . | . . . . . . . . . . . . . . . . . . . . . . . . . Non-combat . | . . . . . . . . . . . . . . . . . . . . . . . . . Combat . | . . . . . . . . . . . . . . . . . . . . . . . . . Robot Hacks Applied . | . . . . . . . . . . . . . . . . . . . . . . . . . Relay Couplers Released . | . . . . . . . . . . . . . . . . . . . . . . . . . Robots Rewired 23 | . . . . . . . . . . . . . . 2 . 21 . . . . . . . . Allies Hacked . | . . . . . . . . . . . . . . . . . . . . . . . . . Hacks Repelled . | . . . . . . . . . . . . . . . . . . . . . . . . . Allies | -11 -10 -10 -9 -9 -8 -7 -7 -7 -6 -6 -6 -6 -6 -5 -5 -5 -5 -5 -5 -4 -3 -2 -1 -1 -------- Run | Scr Mat Min Mat Sto Mat Fac Low Zio Pro Fac Low Low Dat Pro Fac Ext Cet Arc Hub Fac Res Res Acc Com Total Allies 37 | . . . . 10 . . . . . 1 . . . 3 . 23 . . . . . . . . Largest Group 10 | . . . . 10 3 . . . . 1 . . . 3 2 10 8 . . . . . . . Highest-Rated Group 288 | . . . . 88 32 . . . . 26 . . . 173 143 288 210 . . . . . . . Highest-Rated Ally 94 | . . . . 16 16 . . . . 26 . . . 94 94 37 37 . . . . . . . Total Orders 13 | . . . . . . . . . . 2 . . . . 4 2 . . . . . 3 2 . STAY 5 | . . . . . . . . . . 2 . . . . 2 1 . . . . . . . . FOLLOW 3 | . . . . . . . . . . . . . . . 2 1 . . . . . . . . EXPLORE 5 | . . . . . . . . . . . . . . . . . . . . . . 3 2 . Ally Attacks 329 | . . . . 48 41 . . . . . . . . 29 10 164 37 . . . . . . . Total Damage 6110 | . . . . 485 405 . . . . . . . . 1105 196 3243 676 . . . . . . . Kills 66 | . . . . 9 7 . . . . . . . . 11 1 33 5 . . . . . . . Allies Corrupted . | . . . . . . . . . . . . . . . . . . . . . . . . . Allies Melted . | . . . . . . . . . . . . . . . . . . . . . . . . . Intel | -11 -10 -10 -9 -9 -8 -7 -7 -7 -6 -6 -6 -6 -6 -5 -5 -5 -5 -5 -5 -4 -3 -2 -1 -1 ------- Run | Scr Mat Min Mat Sto Mat Fac Low Zio Pro Fac Low Low Dat Pro Fac Ext Cet Arc Hub Fac Res Res Acc Com Robot Analysis Total 1 | . . . 1 . . . . . . . . . . . . . . . . . . . . . Derelict Logs Recovered 10 | . . 1 . . . . 2 1 2 . . 3 . 1 . . . . . . . . . . Drone Launches 6 | . . . . . . . . . . . . . . . . . . . . . . 4 2 . Drone Recoveries 4 | . . . . . . . . . . . . . . . . . . . . . . 3 1 . Exploration | -11 -10 -10 -9 -9 -8 -7 -7 -7 -6 -6 -6 -6 -6 -5 -5 -5 -5 -5 -5 -4 -3 -2 -1 -1 ------------- Run | Scr Mat Min Mat Sto Mat Fac Low Zio Pro Fac Low Low Dat Pro Fac Ext Cet Arc Hub Fac Res Res Acc Com Turns Passed 17664 | 80 305 227 695 995 597 315 93 1666 558 975 359 928 141 604 1488 1882 911 368 1005 1443 565 615 630 219 Spaces Moved 11759 | 47 230 171 372 536 277 210 73 1322 453 639 283 719 117 456 914 891 436 173 418 750 308 427 1138 399 Core 188 | 5 . . . . . . . . . . . . . . . . . . . . . . . 183 Treads 3410 | . . . . . . . . . . . . . . . 299 891 436 173 418 750 308 135 . . Legs 6515 | 42 230 171 372 536 277 210 73 1322 453 639 283 719 117 456 615 . . . . . . . . . Wheels . | . . . . . . . . . . . . . . . . . . . . . . . . . Hover 110 | . . . . . . . . . . . . . . . . . . . . . . 110 . . Flight 1536 | . . . . . . . . . . . . . . . . . . . . . . 182 1138 216 Fastest Speed 31 | 50 120 120 120 150 150 120 120 120 120 120 120 120 120 120 120 160 160 180 160 160 156 74 31 40 Average Speed 125 | 112 120 120 140 150 179 122 120 120 120 126 120 120 120 120 133 160 164 180 166 160 159 105 45 44 Slowest Speed 186 | 120 120 120 150 150 180 150 120 150 120 150 120 120 120 120 160 180 180 180 180 160 160 186 120 50 Overloaded Moves . | . . . . . . . . . . . . . . . . . . . . . . . . . Propulsion Burnouts . | . . . . . . . . . . . . . . . . . . . . . . . . . Robots Hopped 20 | . . . . . . . . . . . . . . . . . . . . . . 4 15 1 Cave-ins Triggered 1 | . . . . . . . . . . . . . . . . . . . 1 . . . . . Exploration Rate (%) 45 | 4 49 43 40 73 26 6 15 84 64 15 42 74 71 61 19 88 87 97 46 24 8 20 46 29 Regions Visited 24 Branch Regions 14 Pre-discovered Areas 7 | . . 1 . . . . 1 1 1 . 1 1 1 . . . . . . . . . . . Known Exits Taken 21 | . 1 1 1 1 1 1 1 1 1 1 1 1 1 1 1 1 1 1 1 1 1 . . . Unknown Exits Taken 3 | 1 . . . . . . . . . . . . . . . . . . . . . 1 1 . Scrap Searched 16 | . . 1 . . . . 1 2 2 . 4 3 . 3 . . . . . . . . . . Spaces Dug 98 | . . . . 1 . . . . . 29 1 1 . . 17 . . . 13 13 . 7 16 . Terrain Destroyed 648 | . . . . 25 . . 5 . . 29 1 3 . 43 50 32 67 8 209 20 4 24 128 . Melee 98 | . . . . 1 . . . . . 29 1 1 . . 17 . . . 13 13 . 7 16 . Projectile 98 | . . . . 1 . . . . . . . 2 . . 1 5 13 8 41 7 3 17 . . AOE 451 | . . . . 23 . . 5 . . . . . . 43 32 27 54 . 155 . . . 112 . Terrain Rammed 2 | . . . . . . . . . . . . . . . . . . . . . 2 . . . Walls Destroyed 1 | . . . . . . . . . . . . . . . . . . . . . 1 . . . Machines Disabled . | . . . . . . . . . . . . . . . . . . . . . . . . . Actions | -11 -10 -10 -9 -9 -8 -7 -7 -7 -6 -6 -6 -6 -6 -5 -5 -5 -5 -5 -5 -4 -3 -2 -1 -1 --------- Run | Scr Mat Min Mat Sto Mat Fac Low Zio Pro Fac Low Low Dat Pro Fac Ext Cet Arc Hub Fac Res Res Acc Com Total 13592 | 67 249 185 502 666 331 254 75 1371 458 737 297 762 117 493 1081 1221 540 200 564 891 364 522 1213 432 Wait 452 | . 7 . 76 74 6 2 . 5 . 36 . 30 . . 52 41 . 9 19 20 21 11 22 21 Move 11696 | 46 229 170 371 535 276 209 72 1321 452 638 282 718 116 455 913 890 435 172 417 749 307 419 1107 397 Hop 19 | . . . . . . . . . . . . . . . . . . . . . . 3 15 1 Pick Up 207 | 9 5 4 5 3 13 9 . 10 . 6 2 1 . 3 19 25 12 3 16 28 7 12 15 . Fast Attach 37 | . . . 5 3 1 3 . 1 . 4 . . . 1 8 2 1 . 3 . 2 2 1 . Attach 100 | 7 1 1 . . 2 2 . 1 . 5 3 . . 1 6 5 6 . 11 14 4 16 12 3 Detach 30 | . 1 . 1 . . 1 . . . 2 1 . . . 2 2 2 . 4 2 1 6 4 1 Swap 116 | . 1 . 9 8 2 6 . 6 2 5 5 3 1 2 15 12 17 2 8 6 4 2 . . Drop 167 | 1 . 4 13 8 7 13 . 11 . 8 2 . . 5 17 6 20 1 3 14 7 13 14 . Fire 401 | 4 5 5 22 33 24 9 3 . 4 3 1 8 . 12 30 43 47 13 66 26 9 30 4 . Melee 166 | . . . . 2 . . . 16 . 30 1 1 . . 19 16 . . 17 32 . 8 19 5 Ram 6 | . . . . . . . . . . . . . . . . . . . . . 2 . . 4 Kick . | . . . . . . . . . . . . . . . . . . . . . . . . . Crush . | . . . . . . . . . . . . . . . . . . . . . . . . . Escape Stasis . | . . . . . . . . . . . . . . . . . . . . . . . . . Rewire 194 | . . . . . . . . . . . . 1 . 14 . 179 . . . . . . . . Trap 1 | . . 1 . . . . . . . . . . . . . . . . . . . . . . Miscellaneous . | . . . . . . . . . . . . . . . . . . . . . . . . . Route ------- -11/Scrapyard -10/Materials (discovered 2 exits: *Mat / *Min) -10/Mines -9/Materials (discovered 4 exits: *Mat / *Min / *Sto x2) -9/Storage (discovered 2 exits: *Mat / Rec) -8/Materials -7/Factory -7/Lower Caves -7/Zion -6/Proximity Caves -6/Factory (discovered 2 exits: *Low x2) -6/Lower Caves -6/Lower Caves -6/Data Miner -5/Proximity Caves -5/Factory (discovered 4 exits: Upp x2 / *Ext x2) -5/Extension (discovered 3 exits: *Fac x2 / *Cet) -5/Cetus (discovered 3 exits: *Fac x2 / *Arc) -5/Archives (discovered 3 exits: *Fac / *Hub x2) -5/Hub_04(d) (discovered 2 exits: *Fac x2) -4/Factory -3/Research -2/Research -1/Access -1/Command History --------- Turn | Location | Event 2 | -11/Scrapyard | Met Revision 17 5 | -11/Scrapyard | Discovered new exit (range 15) 81 | -11/Scrapyard | Entered Materials 288 | -10/Materials | Discovered new exit (range 17) 300 | -10/Materials | Discovered new exit (range 13) 318 | -10/Materials | Build established: Mutant 346 | -10/Materials | Identified exit to Materials 371 | -10/Materials | Identified exit to Mines 386 | -10/Materials | Entered Mines 493 | -10/Mines | Found a hidden stash of uninstalled traps 587 | -10/Mines | Discovered exit to Materials (range 12) 613 | -10/Mines | Entered Materials 613 | -9/Materials | Evolved 2 slots: Utility x2 647 | -9/Materials | Discovered new exit (range 16) 762 | -9/Materials | Identified exit to Mines 894 | -9/Materials | Discovered new exit (range 3) 936 | -9/Materials | Identified exit to Storage 990 | -9/Materials | Discovered new exit (range 3) 991 | -9/Materials | Identified exit to Materials 1087 | -9/Materials | Discovered exit to Storage (range 20) 1308 | -9/Materials | Entered Storage 1612 | -9/Storage | Identified exit to Recycling 1949 | -9/Storage | Assisted by bots powering up and referring to "LRC-V3" 2248 | -9/Storage | Build established: Commander-Mutant 2303 | -9/Storage | Entered Materials 2303 | -8/Materials | Accompanied by 3 allies 2303 | -8/Materials | Evolved 2 slots: Utility x2 2599 | -8/Materials | Build established: Mutant 2721 | -8/Materials | Discovered new exit (range 15) 2873 | -8/Materials | Identified exit to Factory 2900 | -8/Materials | Entered Factory 2900 | -7/Factory | Evolved 2 slots: Propulsion x1, Utility x1 3141 | -7/Factory | Discovered new exit (range 8) 3159 | -7/Factory | Identified exit to Lower Caves 3215 | -7/Factory | Entered Lower Caves 3227 | -7/Lower Caves | Build established: Hacker-Mutant 3246 | -7/Lower Caves | Learned location of Zion (-7) 3301 | -7/Lower Caves | A Derelict revealed a hidden shortcut to a safe place 3307 | -7/Lower Caves | Identified exit to Zion 3308 | -7/Lower Caves | Entered Zion 3385 | -7/Zion | Given the Hacking Drone Bay 3389 | -7/Zion | Found Prototype Device 3390 | -7/Zion | Identified Hacking Drone Bay 3717 | -7/Zion | Found Prototype Device 3717 | -7/Zion | Identified Phasing AFG 3916 | -7/Zion | Learned Factory machine intel 3973 | -7/Zion | Found Relay Coupler [Programmer] 3997 | -7/Zion | Found CR-A16's Pointy Stick 4964 | -7/Zion | Discovered new exit (range 8) 4973 | -7/Zion | Identified exit to Proximity Caves 4974 | -7/Zion | Entered Proximity Caves 5090 | -6/Proximity Caves | Learned 4 Factory zone layouts 5246 | -6/Proximity Caves | Attracted the attention of an 0b10 checkpoint 5396 | -6/Proximity Caves | Spotted B-75 Beast 5455 | -6/Proximity Caves | Learned location of Extension (-5) 5519 | -6/Proximity Caves | Discovered new exit (range 10) 5527 | -6/Proximity Caves | Identified exit to Factory 5532 | -6/Proximity Caves | Entered Factory 5532 | -6/Factory | Evolved 2 slots: Propulsion x1, Utility x1 5534 | -6/Factory | Loaded intel: 260 machine locations 5667 | -6/Factory | Identified exit to Lower Caves 6485 | -6/Factory | Fabricated Arm. Huge Wheel? 6507 | -6/Factory | Entered Lower Caves 6565 | -6/Lower Caves | Encountered a Warlord checkpoint 6637 | -6/Lower Caves | Found Alien Artifact 6638 | -6/Lower Caves | Identified Core Expander 6638 | -6/Lower Caves | Installed Core Expander, added new Weapon slot 6787 | -6/Lower Caves | Learned Research trap positions 6787 | -6/Lower Caves | Learned Extension trap positions 6787 | -6/Lower Caves | Learned Extension security intel 6787 | -6/Lower Caves | Learned Armory security intel 6787 | -6/Lower Caves | Learned Factory garrison access intel 6857 | -6/Lower Caves | Discovered new exit (range 4) 6862 | -6/Lower Caves | Identified exit to Lower Caves 6866 | -6/Lower Caves | Entered another Lower Caves area 6880 | -6/Lower Caves | Spotted B-75 Beast 7038 | -6/Lower Caves | Learned Factory non-interactive machine intel 7430 | -6/Lower Caves | Encountered a Warlord checkpoint 7707 | -6/Lower Caves | Learned Factory trap positions 7749 | -6/Lower Caves | Discovered new exit (range 16) 7757 | -6/Lower Caves | Attracted the attention of an 0b10 checkpoint 7792 | -6/Lower Caves | Identified exit to Data Miner 7794 | -6/Lower Caves | Entered Data Miner 7794 | -6/Data Miner | Discovered new exit (range 7) 7799 | -6/Data Miner | Identified exit to Proximity Caves 7817 | -6/Data Miner | Met Data Miner 7860 | -6/Data Miner | Learned location of Section 7 (-2) 7860 | -6/Data Miner | Acquired the access code to Warlord's prototype stash 7883 | -6/Data Miner | Received God Mode back door access code from Data Miner 7907 | -6/Data Miner | Build established: Hacker-Tank 7935 | -6/Data Miner | Entered Proximity Caves 8161 | -5/Proximity Caves | Attracted the attention of an 0b10 outpost 8166 | -5/Proximity Caves | Escorted by Enhanced Grunt 8235 | -5/Proximity Caves | Attracted the attention of an 0b10 checkpoint 8484 | -5/Proximity Caves | Build established: Hacker-Mutant 8516 | -5/Proximity Caves | Discovered new exit (range 9) 8537 | -5/Proximity Caves | Identified exit to Factory 8539 | -5/Proximity Caves | Entered Factory 8539 | -5/Factory | Accompanied by 2 allies 8539 | -5/Factory | Evolved 2 slots: Propulsion x1, Utility x1 8540 | -5/Factory | Identified exit to Upper Caves 8541 | -5/Factory | Loaded intel: 87 trap records 8542 | -5/Factory | Loaded intel: 226 non-interactive machine locations 8543 | -5/Factory | Loaded intel: 4 garrison access locations 8871 | -5/Factory | Repaired Imp. Carbon-fiber Leg 9026 | -5/Factory | Incoming investigation squad redirected 9036 | -5/Factory | Identified exit to Extension 9468 | -5/Factory | Lost 4 parts (2n1u1w) 10027 | -5/Factory | Entered Extension 10028 | -5/Extension | Loaded intel: 23 trap records 10196 | -5/Extension | Rescued a captive Derelict 10310 | -5/Extension | Energy Cycler disabled 10310 | -5/Extension | Rescued a captive Derelict 10310 | -5/Extension | Rescued a captive Derelict 10310 | -5/Extension | Rescued a captive Derelict 10311 | -5/Extension | Rescued a captive Derelict 10313 | -5/Extension | Rescued a captive Derelict 10318 | -5/Extension | Rescued a captive Derelict 10655 | -5/Extension | Build established: Commander-Mutant 11041 | -5/Extension | Spotted B-75 Beast 11046 | -5/Extension | Destroyed B-75 Beast 11062 | -5/Extension | Discovered new exit (range 16) 11063 | -5/Extension | Spotted B-75 Beast 11066 | -5/Extension | Allies destroyed B-75 Beast 11090 | -5/Extension | Identified exit to Factory 11472 | -5/Extension | Destroyed 9 combat bots 11840 | -5/Extension | Discovered exit to Factory (range 10) 11843 | -5/Extension | Discovered new exit (range 6) 11851 | -5/Extension | Identified exit to Cetus 11887 | -5/Extension | Disrupted transfer network 11909 | -5/Extension | Entered Cetus 11909 | -5/Cetus | Accompanied by 8 allies 11933 | -5/Cetus | Spotted Cetus Guard 11933 | -5/Cetus | Spotted Cetus Guard 11936 | -5/Cetus | Spotted Cetus Guard 11940 | -5/Cetus | Spotted Cetus Guard 11944 | -5/Cetus | Allies destroyed Cetus Guard 11945 | -5/Cetus | Destroyed Cetus Guard 11962 | -5/Cetus | Allies destroyed Cetus Guard 11968 | -5/Cetus | Allies destroyed Cetus Guard 12057 | -5/Cetus | Destroyed 7 combat bots 12086 | -5/Cetus | Discovered exit to Factory (range 16) 12261 | -5/Cetus | Build established: Scavenger-Mutant 12405 | -5/Cetus | Discovered new exit (range 15) 12430 | -5/Cetus | Identified exit to Archives 12468 | -5/Cetus | Spotted Cetus Guard 12468 | -5/Cetus | Spotted Cetus Guard 12471 | -5/Cetus | Destroyed Cetus Guard 12472 | -5/Cetus | Spotted Cetus Guard 12488 | -5/Cetus | Destroyed Cetus Guard 12488 | -5/Cetus | Spotted Cetus Guard 12527 | -5/Cetus | Destroyed Cetus Guard 12557 | -5/Cetus | Destroyed Cetus Guard 12567 | -5/Cetus | Discovered exit to Factory (range 16) 12578 | -5/Cetus | Destroyed 9 combat bots 12582 | -5/Cetus | Met Revision 17 12783 | -5/Cetus | Build established: Hauler-Mutant 12820 | -5/Cetus | Entered Archives 12943 | -5/Archives | Unable to access archive contents 12983 | -5/Archives | Discovered exit to Factory (range 15) 12995 | -5/Archives | Unable to access archive contents 13002 | -5/Archives | Discovered new exit (range 16) 13013 | -5/Archives | Unable to access archive contents 13013 | -5/Archives | Unable to access archive contents 13020 | -5/Archives | Discovered new exit (range 13) 13047 | -5/Archives | Identified exit to Hub_04(d) 13188 | -5/Archives | Entered Hub_04(d) 13334 | -5/Hub_04(d) | Incoming investigation squad redirected 13758 | -5/Hub_04(d) | Build established: Scavenger-Mutant 13780 | -5/Hub_04(d) | Lost 3 parts (2n1u) 13947 | -5/Hub_04(d) | Crushed by falling debris 13947 | -5/Hub_04(d) | Core integrity fell below 50% 13988 | -5/Hub_04(d) | Discovered exit to Factory (range 5) 13998 | -5/Hub_04(d) | Lost 5 parts (1p3u1w) 14088 | -5/Hub_04(d) | First assault squad dispatched 14107 | -5/Hub_04(d) | Discovered exit to Factory (range 5) 14110 | -5/Hub_04(d) | Incoming assault squad redirected 14118 | -5/Hub_04(d) | Incoming assault squad redirected 14135 | -5/Hub_04(d) | Incoming assault squad redirected 14179 | -5/Hub_04(d) | Network Hub disabled 14179 | -5/Hub_04(d) | Garrison activated, responded to threat 14182 | -5/Hub_04(d) | Spotted Lightning 14182 | -5/Hub_04(d) | Spotted Lightning 14182 | -5/Hub_04(d) | Spotted Lightning 14183 | -5/Hub_04(d) | Spotted Lightning 14183 | -5/Hub_04(d) | Spotted Lightning 14185 | -5/Hub_04(d) | System corruption reached 10% 14193 | -5/Hub_04(d) | Spotted Lightning 14193 | -5/Hub_04(d) | Entered Factory 14193 | -4/Factory | Evolved 2 slots: Propulsion x1, Utility x1 14501 | -4/Factory | Build established: Scavenger-Assassin 14595 | -4/Factory | Garrison activated, responded to threat 14660 | -4/Factory | Destroyed 8 combat bots 14832 | -4/Factory | Found Unknown Protection 14904 | -4/Factory | Build established: Scavenger-Mutant 15023 | -4/Factory | Identified Hvy. Reflective Plating 15228 | -4/Factory | Discovered new exit (range 4) 15231 | -4/Factory | Identified exit to Research 15368 | -4/Factory | Spotted B-86 Titan 15636 | -4/Factory | Entered Research 15636 | -3/Research | Evolved 2 slots: Propulsion x1, Utility x1 15637 | -3/Research | Loaded intel: 65 trap records 15706 | -3/Research | Build established: Scavenger-Assassin 15836 | -3/Research | Revision forces began assault on 0b10 15842 | -3/Research | Met up with Revision 17++ 16062 | -3/Research | Discovered new exit (range 9) 16073 | -3/Research | Identified exit to Research 16147 | -3/Research | Build established: Hacker-Tank 16201 | -3/Research | Entered another Research area 16201 | -2/Research | Evolved 2 slots: Power x1, Propulsion x1 16600 | -2/Research | Spotted B-90 Cyclops 16699 | -2/Research | Spotted B-90 Cyclops 16766 | -2/Research | Spotted B-90 Cyclops 16800 | -2/Research | Discovered new exit (range 13) 16816 | -2/Research | Entered Access 16816 | -1/Access | Evolved 2 slots: Propulsion x2 16845 | -1/Access | Lost 3 parts (1n2u) 17089 | -1/Access | Spotted B-99 Colossus 17120 | -1/Access | Lost 7 parts (1p3n2u1w) 17292 | -1/Access | Found Gamma Bomb Array 17304 | -1/Access | Spotted B-99 Colossus 17368 | -1/Access | Lost 5 parts (1p1n3u) 17395 | -1/Access | Hacking Suite fried by hacking feedback 17443 | -1/Access | Discovered new exit (range 7) 17446 | -1/Access | Entered Command 17469 | -1/Command | Spotted B-99 Colossus 17485 | -1/Command | Disengaged cave seal 17485 | -1/Command | Imp. Hacking Suite fried by hacking feedback 17599 | -1/Command | Build established: Hacker-Mutant 17630 | -1/Command | Spotted Executioner 17630 | -1/Command | Spotted Executioner 17630 | -1/Command | Spotted Striker 17630 | -1/Command | Spotted Alpha 7 17630 | -1/Command | Spotted Executioner 17630 | -1/Command | Spotted Executioner 17630 | -1/Command | Spotted Striker 17630 | -1/Command | Spotted Alpha 7 17633 | -1/Command | Core integrity fell below 50% 17659 | -1/Command | Core integrity fell below 20% 17665 | -1/Command | Destroyed by S-43 Plague with Heavy Machine Gun Last Messages --------------- 17637_ K-01 Serf destroyed. 17638_ K-01 Serf collects debris. 17639_ Acquired 16 matter. 17639_ Slammed into K-01 Serf. 17640_ K-01 Serf collects debris. 17647_ Slug penetrates Wall. 17650_ System corrupted: Heat flow error (+277). 17656_ Lance destroyed. 17661_ Slammed into S-43 Plague. 17661_ Imp. System Shield destroyed. 17661_ System corrupted by crushing effect (+3). 17662_ Slammed into S-43 Plague. 17663_ Knocked back. 17663_ Penetrated by Slug. 17663_ Slug penetrates Wall. 17663_ Slug penetrates S-43 Plague. 17663_ S-43 Plague destroyed. 17663_ Slug penetrates Wall. 17663_ Acquired 34 matter. 17665_ Knocked back. Map ----- +----------------------------------------------------+ | ?????????????????????????????????????????????????? | | ?????????????????????????????????????????????????? | | ?????????????????????????????????????????????????? | | ?????????????????????????????????????????????????? | | ?????????????????????????????????????????????????? | | ?????????????????????????????????????????????????? | | ?????????????????????????????????????????????????? | | ?????????????????????????????????????????????????? | | ?????????????????????????????????????????????????? | | ?????????????????????????????????????????????????? | | ?????????????????????????????????????????????????? | | ?????????????????????????????????????????????????? | | ?????????????????????????????????????????????????? | | ?????????????????????????????????????????????????? | | ?????????????????????????????????????????????????? | | ?????????????????????????????????????????????????? | | ?????????????????????????????????????????????????? | | ?????????????????????????????????????????????????? | | ?????????????????????????????????????????????????? | | ????????????????#????????????????????????????????? | | ????????????????# ???????????????????????????????? | | ????????????????# ???????????????????????????????? | | ????????????????# ??????????????????????????????? | | ????????????????# ###############???????????????? | | ??????# ##+##### ; #???????????????? | | ??????# ;@ #???????????????? | | ??????# ; #??????????? ???? | | ??????# ^ ss;ss #?? ?????? ??? | | ??????# KK= = #?? ?????? ??? | | ??????#+######### ### ## [ #?? ?????? ??? | | ????????????????# ???# ## #??? ?????? ??? | | ?????????????????????# ## #??? """""" ??? | | ?????????????????????# ## s ;#?? ??? | | ???????????????????###+######E#####??? ???? | | ???????????????????# """" #????? ???? | | ???????????????????# """" #?????# #???? | | ???????????????????# """" #????? ???? | | ???????????????????# """" #????## #???? | | ???????????????????# #????? ???? | | ???????????????????# #????## ##??? | | ???????????????????# #????? ^ ^ ???? | | ???????????????????# #????## ^ ##??? | | ???????????????????# #????# ???? | | ???????????????????# #?????# #???? | | ???????????????????# #?????# #???? | | ???????????????????# #??????#////#????? | | ??????????????????###+####+############# ##???? | | ??????????????????# /*= ! ! # "#???? | | ??????????????????# # ""T %* # ##???? | | ??????????????????# # """"= / #????# | +----------------------------------------------------+ Best States ------------- Heat Dissipation 68 Energy Generation 43 Energy Capacity 350 Matter Stores 300 Matter Capacity 300 Sight Range 22 Robot Scan Range 22 Terrain Scan Density 10 Jamming Range 12 Armor Coverage 1275 Resistance: KI 20 Resistance: TH 45 Resistance: EX 20 Resistance: EM 20 Resistance: I 20 Resistance: S 20 Resistance: P 20 Utility Shielding 66 Evasion (%) 77 Targeting Accuracy 8 Recoil Reduction 8 Offensive Hacking 32 Defensive Hacking 12 Item Schematics ----------------- Gauss Rifle | -6/Factory | Scanalyzed Flexi-carbon Leg | -6/Factory | Scanalyzed Arm. Huge Wheel | -6/Factory | Scanalyzed Missile Launcher | -6/Factory | Scanalyzed Proton Missile Launcher | -6/Factory | Scanalyzed Hvy. Beamcaster | -6/Factory | Scanalyzed Flak Gun | -6/Factory | Scanalyzed Combat Drone Bay | -6/Data Miner | Free Lgt. Regenerative Plating | -6/Data Miner | Free Exp. Flexi-carbon Leg | -6/Data Miner | Free Cmb. Gravmag System | -6/Data Miner | Free Exp. Cesium-ion Thruster | -6/Data Miner | Free Exp. Terrain Scan Processor | -6/Data Miner | Free Tactical Coordination Suite | -6/Data Miner | Free Exp. ECM Suite | -6/Data Miner | Free Mni. Smartbomb Launcher | -6/Data Miner | Free Plasma Sword | -6/Data Miner | Free Kinetic Spear | -6/Data Miner | Free Lrn. Sensor Array | -5/Factory | Hacked Robot Schematics ------------------ S-27 Virus | -6/Data Miner | Free G-50 Soldier | -6/Data Miner | Free G-67 Veteran | -6/Data Miner | Free H-66 Slayer | -6/Data Miner | Free P-70 Sage | -6/Data Miner | Free I-36 Angel | -6/Data Miner | Free Fabricated ------------ Arm. Huge Wheel | x2 | -6/Factory Alien Tech Used ----------------- Core Expander Achievements -------------- Dodgeball, But With Guns Packrat Total Silence Challenges ------------ None Game ------ Seed IonicGlidesysCutter Manual? 0 Play Time 07:00:20 Cumulative 173.9 hours Start 2021.04.10 @ 21:00:00 End 2021.04.23 @ 00:24:10 Sessions 13 Manual Loads 0 Difficulty Adventurer Special Mode None Game No. 66 Rogue 41 Adventurer 10 Explorer 15 Win Type - Total 10 Types 5/0/1/4/0/0/0/0/0 Lore% 56 Gallery% 70 Achievement% 52 Wizard Run 0 Options --------- ASCII 0 Keyboard 0 Movement Mouse Keybinds 0 Fullscreen 1 Font 18/SmallcapsGlow Map View 76x50 Tactical HUD 1 Map Filters NONE Filters NONE Steam 1 RUN: 3896a0e8-3454-4dc8-aca3-6f6e4183a369